[Event "Titled Tuesday Blitz October 11 Early 2022"]
[White "Johnson, Ben"]
[Black "Aslanov, Umid"]
[WhiteFideId "2010917"]
[BlackFideId "13412620"]
[WhiteElo "2203"]
[BlackElo "2173"]
[Result "0-1"]
[Round "02"]
[TimeControl "180+1"]
[Date "2022.10.12"]
[WhiteClock "0:00:05"]
[BlackClock "0:00:45"]

1. Nf3 {[%clk 0:03:00]}  d5 {[%clk 0:03:00]} 2. e3 {[%clk 0:03:00]}  Nf6 {[%clk 0:02:59]} 3. c4 {[%clk 0:03:00]}  e6 {[%clk 0:02:58]} 4. b3 {[%clk 0:02:59]}  dxc4 {[%clk 0:02:59]} 5. bxc4 {[%clk 0:02:57]}  c5 {[%clk 0:02:59]} 6. d4 {[%clk 0:02:55]}  cxd4 {[%clk 0:02:49]} 7. exd4 {[%clk 0:02:56]}  Nc6 {[%clk 0:02:45]} 8. Be3 {[%clk 0:02:24]}  Bb4+ {[%clk 0:02:44]} 9. Nbd2 {[%clk 0:02:24]}  Ne4 {[%clk 0:02:36]} 10. a3 {[%clk 0:01:47]}  Ba5 {[%clk 0:02:31]} 11. Ra2 {[%clk 0:01:36]}  Nc3 {[%clk 0:02:29]} 12. Qc2 {[%clk 0:01:35]}  Nxa2 {[%clk 0:02:29]} 13. Qxa2 {[%clk 0:01:36]}  O-O {[%clk 0:02:08]} 14. Bd3 {[%clk 0:01:36]}  e5 {[%clk 0:01:57]} 15. d5 {[%clk 0:01:33]}  f5 {[%clk 0:01:53]} 16. Bg5 {[%clk 0:01:14]}  Qd6 {[%clk 0:01:32]} 17. Bb1 {[%clk 0:01:06]}  e4 {[%clk 0:01:30]} 18. dxc6 {[%clk 0:00:59]}  exf3 {[%clk 0:01:22]} 19. c5+ {[%clk 0:00:58]}  Qe6+ {[%clk 0:01:22]} 20. Qxe6+ {[%clk 0:00:52]}  Bxe6 {[%clk 0:01:23]} 21. cxb7 {[%clk 0:00:49]}  Rab8 {[%clk 0:01:10]} 22. c6 {[%clk 0:00:47]}  fxg2 {[%clk 0:01:09]} 23. Rg1 {[%clk 0:00:46]}  Bd5 {[%clk 0:01:10]} 24. Bf4 {[%clk 0:00:30]}  Bxc6 {[%clk 0:01:02]} 25. Bxb8 {[%clk 0:00:28]}  Rxb8 {[%clk 0:01:02]} 26. Bxf5 {[%clk 0:00:27]}  Rxb7 {[%clk 0:00:56]} 27. Kd1 {[%clk 0:00:23]}  Ba4+ {[%clk 0:00:49]} 28. Kc1 {[%clk 0:00:20]}  Rc7+ {[%clk 0:00:49]} 29. Kb1 {[%clk 0:00:15]}  Bxd2 {[%clk 0:00:49]} 30. Be6+ {[%clk 0:00:16]}  Kf8 {[%clk 0:00:49]} 31. Rxg2 {[%clk 0:00:16]}  Rb7+ {[%clk 0:00:48]} 32. Ka2 {[%clk 0:00:13]}  Bc2 {[%clk 0:00:45]} 33. f4 {[%clk 0:00:09]}  Bb1+ {[%clk 0:00:44]} 34. Ka1 {[%clk 0:00:05]}  Bc3+ {[%clk 0:00:45]} 0-1


[Site "https://www.chess.com"]

[Event "Titled Tuesday Blitz October 11 Early 2022"]
[White "Koziorowicz, Michal"]
[Black "Schut, Han"]
[WhiteFideId "21809194"]
[BlackFideId "1005561"]
[WhiteElo "2220"]
[BlackElo "2024"]
[Result "1-0"]
[Round "02"]
[TimeControl "180+1"]
[Date "2022.10.12"]
[WhiteClock "0:02:20"]
[BlackClock "0:01:30"]

1. Nc3 {[%clk 0:03:00]}  c5 {[%clk 0:02:55]} 2. g4 {[%clk 0:02:51]}  Nc6 {[%clk 0:02:55]} 3. Bg2 {[%clk 0:02:51]}  g6 {[%clk 0:02:53]} 4. h4 {[%clk 0:02:51]}  Bg7 {[%clk 0:02:53]} 5. h5 {[%clk 0:02:50]}  e6 {[%clk 0:02:39]} 6. d3 {[%clk 0:02:46]}  d5 {[%clk 0:02:35]} 7. h6 {[%clk 0:02:43]}  Bf6 {[%clk 0:02:34]} 8. Nf3 {[%clk 0:02:42]}  g5 {[%clk 0:02:19]} 9. e4 {[%clk 0:02:40]}  d4 {[%clk 0:02:11]} 10. Ne2 {[%clk 0:02:39]}  e5 {[%clk 0:02:12]} 11. Ng3 {[%clk 0:02:22]}  Bxg4 {[%clk 0:02:09]} 12. Nh5 {[%clk 0:02:22]}  Bxh5 {[%clk 0:02:03]} 13. Rxh5 {[%clk 0:02:23]}  g4 {[%clk 0:02:00]} 14. Nh2 {[%clk 0:02:22]}  Qd7 {[%clk 0:01:31]} 15. Nxg4 {[%clk 0:02:20]}  O-O-O {[%clk 0:01:30]} 16. Bh3 {[%clk 0:02:20]} 1-0


[Site "https://www.chess.com"]

[Event "Titled Tuesday Blitz October 11 Early 2022"]
[White "Kravtsiv, Martyn"]
[Black "Arabidze, Meri"]
[WhiteFideId "14113147"]
[BlackFideId "13604040"]
[WhiteElo "2694"]
[BlackElo "2403"]
[Result "0-1"]
[Round "02"]
[TimeControl "180+1"]
[Date "2022.10.11"]
[WhiteClock "0:00:02"]
[BlackClock "0:00:12"]

1. e4 {[%clk 0:03:00]}  c5 {[%clk 0:02:59]} 2. Nf3 {[%clk 0:03:01]}  e6 {[%clk 0:03:00]} 3. d4 {[%clk 0:03:00]}  cxd4 {[%clk 0:03:01]} 4. Nxd4 {[%clk 0:03:00]}  Nc6 {[%clk 0:03:02]} 5. Nc3 {[%clk 0:02:59]}  a6 {[%clk 0:03:01]} 6. Be2 {[%clk 0:02:58]}  Nf6 {[%clk 0:03:01]} 7. O-O {[%clk 0:02:57]}  d6 {[%clk 0:03:00]} 8. Be3 {[%clk 0:02:57]}  Be7 {[%clk 0:03:01]} 9. f4 {[%clk 0:02:57]}  O-O {[%clk 0:03:01]} 10. Qe1 {[%clk 0:02:57]}  Nxd4 {[%clk 0:03:01]} 11. Bxd4 {[%clk 0:02:57]}  b5 {[%clk 0:03:02]} 12. Qg3 {[%clk 0:02:57]}  g6 {[%clk 0:02:57]} 13. a3 {[%clk 0:02:50]}  Bb7 {[%clk 0:02:56]} 14. f5 {[%clk 0:02:47]}  e5 {[%clk 0:02:55]} 15. Be3 {[%clk 0:02:47]}  Nxe4 {[%clk 0:02:52]} 16. Nxe4 {[%clk 0:02:27]}  Bxe4 {[%clk 0:02:53]} 17. Bh6 {[%clk 0:02:12]}  Re8 {[%clk 0:02:47]} 18. Bd3 {[%clk 0:01:27]}  Bxd3 {[%clk 0:02:43]} 19. cxd3 {[%clk 0:01:27]}  Bf8 {[%clk 0:02:20]} 20. Bxf8 {[%clk 0:01:09]}  Rxf8 {[%clk 0:02:21]} 21. f6 {[%clk 0:01:09]}  Kh8 {[%clk 0:02:20]} 22. Qh4 {[%clk 0:01:07]}  Rg8 {[%clk 0:02:14]} 23. Qg5 {[%clk 0:00:52]}  Qf8 {[%clk 0:02:10]} 24. Rf3 {[%clk 0:00:52]}  Rc8 {[%clk 0:01:26]} 25. Rh3 {[%clk 0:00:50]}  e4 {[%clk 0:01:18]} 26. d4 {[%clk 0:00:32]}  Re8 {[%clk 0:01:05]} 27. Rc1 {[%clk 0:00:29]}  e3 {[%clk 0:01:04]} 28. Rc3 {[%clk 0:00:23]}  Re4 {[%clk 0:00:51]} 29. Kf1 {[%clk 0:00:20]}  Rxd4 {[%clk 0:00:43]} 30. Rcxe3 {[%clk 0:00:18]}  Qc8 {[%clk 0:00:27]} 31. Rxh7+ {[%clk 0:00:08]}  Kxh7 {[%clk 0:00:28]} 32. Rh3+ {[%clk 0:00:08]}  Qxh3 {[%clk 0:00:28]} 33. gxh3 {[%clk 0:00:09]}  Re8 {[%clk 0:00:26]} 34. Kf2 {[%clk 0:00:07]}  Re5 {[%clk 0:00:26]} 35. Qc1 {[%clk 0:00:06]}  Rf5+ {[%clk 0:00:25]} 36. Ke3 {[%clk 0:00:06]}  Rdd5 {[%clk 0:00:24]} 37. Qc6 {[%clk 0:00:06]}  Rfe5+ {[%clk 0:00:20]} 38. Kf4 {[%clk 0:00:06]}  Rf5+ {[%clk 0:00:21]} 39. Ke3 {[%clk 0:00:06]}  Rde5+ {[%clk 0:00:15]} 40. Kd4 {[%clk 0:00:06]}  Rxf6 {[%clk 0:00:16]} 41. Qxa6 {[%clk 0:00:05]}  Rf4+ {[%clk 0:00:16]} 42. Kd3 {[%clk 0:00:06]}  Rf6 {[%clk 0:00:14]} 43. Qc6 {[%clk 0:00:05]}  Kg7 {[%clk 0:00:14]} 44. b3 {[%clk 0:00:04]}  Rc5 {[%clk 0:00:13]} 45. Qe4 {[%clk 0:00:03]}  Rh5 {[%clk 0:00:13]} 46. a4 {[%clk 0:00:02]}  bxa4 {[%clk 0:00:13]} 47. bxa4 {[%clk 0:00:02]}  Rxh3+ {[%clk 0:00:13]} 48. Kc4 {[%clk 0:00:02]}  Rxh2 {[%clk 0:00:13]} 49. a5 {[%clk 0:00:02]}  Ra2 {[%clk 0:00:12]} 50. Kb4 {[%clk 0:00:02]}  Raf2 {[%clk 0:00:11]} 51. Qd4 {[%clk 0:00:02]}  Rf4 {[%clk 0:00:11]} 52. Kc4 {[%clk 0:00:02]}  Rxd4+ {[%clk 0:00:12]} 0-1


[Site "https://www.chess.com"]

[Event "Titled Tuesday Blitz October 11 Early 2022"]
[White "Krzywda, Andrzej"]
[Black "Carlsen, Magnus"]
[WhiteFideId "1114565"]
[BlackFideId "1503014"]
[WhiteElo "2149"]
[BlackElo "2830"]
[Result "0-1"]
[Round "02"]
[TimeControl "180+1"]
[Date "2022.10.12"]
[WhiteClock "0:00:02"]
[BlackClock "0:01:28"]

1. e4 {[%clk 0:03:00]}  c5 {[%clk 0:02:59]} 2. Nc3 {[%clk 0:03:00]}  g6 {[%clk 0:02:58]} 3. f4 {[%clk 0:02:54]}  Bg7 {[%clk 0:02:57]} 4. Nf3 {[%clk 0:02:54]}  Nc6 {[%clk 0:02:56]} 5. a4 {[%clk 0:02:55]}  e6 {[%clk 0:02:55]} 6. e5 {[%clk 0:02:55]}  Nge7 {[%clk 0:02:52]} 7. Ne4 {[%clk 0:02:44]}  O-O {[%clk 0:02:52]} 8. Bb5 {[%clk 0:02:39]}  b6 {[%clk 0:02:09]} 9. c3 {[%clk 0:02:33]}  Bb7 {[%clk 0:02:09]} 10. Nd6 {[%clk 0:02:27]}  Qc7 {[%clk 0:02:09]} 11. Nxb7 {[%clk 0:02:19]}  Qxb7 {[%clk 0:02:09]} 12. d3 {[%clk 0:02:15]}  a6 {[%clk 0:02:09]} 13. Bxc6 {[%clk 0:02:15]}  Qxc6 {[%clk 0:02:09]} 14. Qe2 {[%clk 0:02:11]}  d6 {[%clk 0:02:09]} 15. O-O {[%clk 0:02:09]}  Rad8 {[%clk 0:02:09]} 16. d4 {[%clk 0:02:01]}  cxd4 {[%clk 0:02:09]} 17. Nxd4 {[%clk 0:01:54]}  Qb7 {[%clk 0:02:09]} 18. a5 {[%clk 0:01:38]}  b5 {[%clk 0:02:06]} 19. Bd2 {[%clk 0:01:21]}  dxe5 {[%clk 0:02:05]} 20. fxe5 {[%clk 0:01:22]}  Rd5 {[%clk 0:02:04]} 21. Nf3 {[%clk 0:01:15]}  h6 {[%clk 0:02:05]} 22. Bf4 {[%clk 0:01:14]}  g5 {[%clk 0:02:04]} 23. Bg3 {[%clk 0:01:13]}  Nf5 {[%clk 0:02:05]} 24. Rae1 {[%clk 0:01:07]}  Rfd8 {[%clk 0:02:03]} 25. Bf2 {[%clk 0:01:02]}  Ne7 {[%clk 0:01:42]} 26. Bb6 {[%clk 0:01:01]}  R8d7 {[%clk 0:01:42]} 27. Rd1 {[%clk 0:00:55]}  Ng6 {[%clk 0:01:39]} 28. Bd4 {[%clk 0:00:52]}  b4 {[%clk 0:01:38]} 29. c4 {[%clk 0:00:46]}  Nf4 {[%clk 0:01:37]} 30. Qe4 {[%clk 0:00:39]}  Rxa5 {[%clk 0:01:38]} 31. Qxb7 {[%clk 0:00:33]}  Rxb7 {[%clk 0:01:38]} 32. Rfe1 {[%clk 0:00:27]}  Ng6 {[%clk 0:01:33]} 33. c5 {[%clk 0:00:22]}  Ne7 {[%clk 0:01:32]} 34. Rc1 {[%clk 0:00:20]}  Nc6 {[%clk 0:01:32]} 35. Bf2 {[%clk 0:00:20]}  Rd7 {[%clk 0:01:30]} 36. Red1 {[%clk 0:00:19]}  Rxd1+ {[%clk 0:01:29]} 37. Rxd1 {[%clk 0:00:20]}  g4 {[%clk 0:01:29]} 38. Nd4 {[%clk 0:00:16]}  Rxc5 {[%clk 0:01:29]} 39. Nxe6 {[%clk 0:00:14]}  Rxe5 {[%clk 0:01:29]} 40. Nxg7 {[%clk 0:00:14]}  Kxg7 {[%clk 0:01:30]} 41. Rd6 {[%clk 0:00:13]}  Re6 {[%clk 0:01:30]} 42. Rd7 {[%clk 0:00:12]}  a5 {[%clk 0:01:30]} 43. Rc7 {[%clk 0:00:11]}  Kg6 {[%clk 0:01:31]} 44. Kf1 {[%clk 0:00:11]}  h5 {[%clk 0:01:31]} 45. h3 {[%clk 0:00:10]}  Ne5 {[%clk 0:01:30]} 46. hxg4 {[%clk 0:00:09]}  Nxg4 {[%clk 0:01:30]} 47. Bd4 {[%clk 0:00:09]}  Rd6 {[%clk 0:01:28]} 48. Bc5 {[%clk 0:00:08]}  Rd2 {[%clk 0:01:28]} 49. b3 {[%clk 0:00:07]}  Rc2 {[%clk 0:01:27]} 50. Rc6+ {[%clk 0:00:07]}  f6 {[%clk 0:01:27]} 51. Rc7 {[%clk 0:00:06]}  Ne3+ {[%clk 0:01:26]} 52. Kg1 {[%clk 0:00:04]}  Rxg2+ {[%clk 0:01:26]} 53. Kh1 {[%clk 0:00:04]}  Rc2 {[%clk 0:01:27]} 54. Bb6 {[%clk 0:00:04]}  Rxc7 {[%clk 0:01:26]} 55. Bxc7 {[%clk 0:00:05]}  a4 {[%clk 0:01:27]} 56. bxa4 {[%clk 0:00:04]}  b3 {[%clk 0:01:28]} 57. a5 {[%clk 0:00:02]}  b2 {[%clk 0:01:28]} 0-1


[Site "https://www.chess.com"]

[Event "Titled Tuesday Blitz October 11 Early 2022"]
[White "Laohawirapap, Prin"]
[Black "Gareyev, Timur"]
[WhiteFideId "6205003"]
[BlackFideId "14200937"]
[WhiteElo "2113"]
[BlackElo "2552"]
[Result "1-0"]
[Round "02"]
[TimeControl "180+1"]
[Date "2022.10.12"]
[WhiteClock "0:00:03"]
[BlackClock "0:00:17"]

1. e4 {[%clk 0:03:00]}  c5 {[%clk 0:02:58]} 2. Nf3 {[%clk 0:03:00]}  Nc6 {[%clk 0:02:56]} 3. d4 {[%clk 0:03:01]}  cxd4 {[%clk 0:02:55]} 4. Nxd4 {[%clk 0:03:02]}  Nf6 {[%clk 0:02:56]} 5. Nc3 {[%clk 0:03:02]}  h5 {[%clk 0:02:56]} 6. Nxc6 {[%clk 0:02:59]}  bxc6 {[%clk 0:02:52]} 7. Bd3 {[%clk 0:02:47]}  Qc7 {[%clk 0:02:44]} 8. O-O {[%clk 0:02:46]}  e5 {[%clk 0:02:37]} 9. Qe2 {[%clk 0:02:37]}  a5 {[%clk 0:02:25]} 10. b3 {[%clk 0:02:36]}  d6 {[%clk 0:02:18]} 11. Bb2 {[%clk 0:02:35]}  h4 {[%clk 0:02:15]} 12. Na4 {[%clk 0:02:05]}  Nh5 {[%clk 0:02:07]} 13. c4 {[%clk 0:01:52]}  Nf4 {[%clk 0:02:07]} 14. Qd2 {[%clk 0:01:52]}  Rh6 {[%clk 0:01:54]} 15. c5 {[%clk 0:01:37]}  Rg6 {[%clk 0:01:15]} 16. g3 {[%clk 0:01:33]}  Qd7 {[%clk 0:00:58]} 17. Rfe1 {[%clk 0:01:24]}  dxc5 {[%clk 0:00:48]} 18. Bxe5 {[%clk 0:00:41]}  Nxd3 {[%clk 0:00:45]} 19. Nb6 {[%clk 0:00:41]}  Nxe5 {[%clk 0:00:45]} 20. Qf4 {[%clk 0:00:29]}  Qd4 {[%clk 0:00:32]} 21. Nxa8 {[%clk 0:00:25]}  Rf6 {[%clk 0:00:32]} 22. Nc7+ {[%clk 0:00:19]}  Kd8 {[%clk 0:00:24]} 23. Rad1 {[%clk 0:00:17]}  Nf3+ {[%clk 0:00:17]} 24. Kh1 {[%clk 0:00:03]} 1-0


[Site "https://www.chess.com"]

[Event "Titled Tuesday Blitz October 11 Early 2022"]
[White "Lehtosaari, Mauri"]
[Black "Smietanska, Wiktoria"]
[WhiteFideId "501999"]
[BlackFideId "21869359"]
[WhiteElo "2499"]
[BlackElo "1854"]
[Result "1-0"]
[Round "02"]
[TimeControl "180+1"]
[Date "2022.10.12"]
[WhiteClock "0:00:40"]
[BlackClock "0:00:08"]

1. d4 {[%clk 0:03:00]}  Nf6 {[%clk 0:02:59]} 2. Nf3 {[%clk 0:03:01]}  g6 {[%clk 0:02:59]} 3. Bg5 {[%clk 0:03:02]}  Bg7 {[%clk 0:02:59]} 4. Nbd2 {[%clk 0:03:03]}  d5 {[%clk 0:02:59]} 5. c3 {[%clk 0:03:01]}  O-O {[%clk 0:02:59]} 6. e3 {[%clk 0:03:01]}  c5 {[%clk 0:02:59]} 7. dxc5 {[%clk 0:03:01]}  Nc6 {[%clk 0:02:59]} 8. Be2 {[%clk 0:02:57]}  e5 {[%clk 0:02:59]} 9. O-O {[%clk 0:02:55]}  h6 {[%clk 0:02:59]} 10. Bxf6 {[%clk 0:02:48]}  Qxf6 {[%clk 0:03:00]} 11. a4 {[%clk 0:02:48]}  Qe7 {[%clk 0:02:58]} 12. Nb3 {[%clk 0:02:21]}  Rd8 {[%clk 0:02:58]} 13. h3 {[%clk 0:02:14]}  Be6 {[%clk 0:02:57]} 14. Qc2 {[%clk 0:02:08]}  f5 {[%clk 0:02:57]} 15. Rfd1 {[%clk 0:02:07]}  Bf7 {[%clk 0:02:55]} 16. a5 {[%clk 0:02:04]}  a6 {[%clk 0:02:53]} 17. Ra4 {[%clk 0:02:03]}  Qe6 {[%clk 0:02:43]} 18. Rda1 {[%clk 0:01:48]}  d4 {[%clk 0:02:27]} 19. Bc4 {[%clk 0:01:47]}  Qe7 {[%clk 0:02:21]} 20. Bxf7+ {[%clk 0:01:42]}  Qxf7 {[%clk 0:02:22]} 21. cxd4 {[%clk 0:01:41]}  exd4 {[%clk 0:02:19]} 22. exd4 {[%clk 0:01:40]}  Rd5 {[%clk 0:02:16]} 23. Re1 {[%clk 0:01:36]}  Rad8 {[%clk 0:02:13]} 24. Qe2 {[%clk 0:01:34]}  Qd7 {[%clk 0:02:07]} 25. Qe6+ {[%clk 0:01:30]}  Qxe6 {[%clk 0:01:43]} 26. Rxe6 {[%clk 0:01:31]}  g5 {[%clk 0:01:40]} 27. g4 {[%clk 0:01:23]}  fxg4 {[%clk 0:01:35]} 28. hxg4 {[%clk 0:01:24]}  Rf8 {[%clk 0:01:34]} 29. Kg2 {[%clk 0:01:21]}  Rf4 {[%clk 0:01:21]} 30. Kg3 {[%clk 0:01:21]}  Kf7 {[%clk 0:01:05]} 31. Re3 {[%clk 0:01:19]}  Bf8 {[%clk 0:00:51]} 32. Rc4 {[%clk 0:01:16]}  Be7 {[%clk 0:00:36]} 33. Nfd2 {[%clk 0:01:10]}  Bd8 {[%clk 0:00:32]} 34. Ne4 {[%clk 0:01:08]}  Nxa5 {[%clk 0:00:15]} 35. Nxa5 {[%clk 0:01:05]}  Bxa5 {[%clk 0:00:14]} 36. Nd6+ {[%clk 0:01:05]}  Kf6 {[%clk 0:00:11]} 37. Nxb7 {[%clk 0:00:58]}  Bc7 {[%clk 0:00:10]} 38. Kg2 {[%clk 0:00:55]}  Rfxd4 {[%clk 0:00:10]} 39. Rf3+ {[%clk 0:00:49]}  Kg6 {[%clk 0:00:08]} 40. Rxd4 {[%clk 0:00:49]}  Rxd4 {[%clk 0:00:08]} 41. Re3 {[%clk 0:00:42]}  Be5 {[%clk 0:00:08]} 42. Rxe5 {[%clk 0:00:41]}  Rxg4+ {[%clk 0:00:08]} 43. Kf3 {[%clk 0:00:40]} 1-0


[Site "https://www.chess.com"]

[Event "Titled Tuesday Blitz October 11 Early 2022"]
[White "Leve, Nitai"]
[Black "Priasmoro, Novendra"]
[WhiteFideId "2006898"]
[BlackFideId "7105029"]
[WhiteElo "2144"]
[BlackElo "2412"]
[Result "0-1"]
[Round "02"]
[TimeControl "180+1"]
[Date "2022.10.12"]
[WhiteClock "0:00:01"]
[BlackClock "0:00:49"]

1. e4 {[%clk 0:02:58]}  Nc6 {[%clk 0:02:59]} 2. Nf3 {[%clk 0:02:49]}  e5 {[%clk 0:02:58]} 3. Bb5 {[%clk 0:02:47]}  a6 {[%clk 0:02:57]} 4. Ba4 {[%clk 0:02:47]}  Nf6 {[%clk 0:02:57]} 5. d4 {[%clk 0:02:45]}  b5 {[%clk 0:02:54]} 6. Bb3 {[%clk 0:02:45]}  Nxd4 {[%clk 0:02:54]} 7. Bxf7+ {[%clk 0:02:38]}  Kxf7 {[%clk 0:02:49]} 8. Nxe5+ {[%clk 0:02:39]}  Ke6 {[%clk 0:02:40]} 9. Qxd4 {[%clk 0:02:40]}  c5 {[%clk 0:02:41]} 10. Qc3 {[%clk 0:02:22]}  Nxe4 {[%clk 0:02:29]} 11. Qe3 {[%clk 0:02:17]}  d5 {[%clk 0:02:29]} 12. Nf3 {[%clk 0:01:44]}  Kf7 {[%clk 0:02:24]} 13. O-O {[%clk 0:01:42]}  Bd6 {[%clk 0:02:23]} 14. Nbd2 {[%clk 0:01:29]}  Re8 {[%clk 0:02:21]} 15. Nxe4 {[%clk 0:01:29]}  dxe4 {[%clk 0:02:22]} 16. Ng5+ {[%clk 0:01:22]}  Kg8 {[%clk 0:02:21]} 17. f3 {[%clk 0:00:58]}  Bf5 {[%clk 0:02:02]} 18. fxe4 {[%clk 0:00:55]}  Bg6 {[%clk 0:01:54]} 19. Qf3 {[%clk 0:00:21]}  Rf8 {[%clk 0:01:51]} 20. Qb3+ {[%clk 0:00:21]}  c4 {[%clk 0:01:51]} 21. Rxf8+ {[%clk 0:00:22]}  Qxf8 {[%clk 0:01:51]} 22. Qf3 {[%clk 0:00:22]}  Qe7 {[%clk 0:01:44]} 23. e5 {[%clk 0:00:16]}  Bc5+ {[%clk 0:01:41]} 24. Kh1 {[%clk 0:00:15]}  Rd8 {[%clk 0:01:42]} 25. Be3 {[%clk 0:00:13]}  Qxe5 {[%clk 0:01:27]} 26. Bxc5 {[%clk 0:00:12]}  Qxg5 {[%clk 0:01:22]} 27. Be3 {[%clk 0:00:03]}  Qe5 {[%clk 0:01:21]} 28. c3 {[%clk 0:00:03]}  Re8 {[%clk 0:01:19]} 29. Bd4 {[%clk 0:00:02]}  Qe7 {[%clk 0:01:17]} 30. Rf1 {[%clk 0:00:02]}  h6 {[%clk 0:01:15]} 31. Qd5+ {[%clk 0:00:02]}  Kh7 {[%clk 0:01:15]} 32. h3 {[%clk 0:00:02]}  Qe2 {[%clk 0:01:12]} 33. Qf3 {[%clk 0:00:02]}  Qxf3 {[%clk 0:01:03]} 34. Rxf3 {[%clk 0:00:03]}  Re1+ {[%clk 0:01:02]} 35. Kh2 {[%clk 0:00:03]}  Be4 {[%clk 0:00:57]} 36. Rf2 {[%clk 0:00:03]}  Kg6 {[%clk 0:00:56]} 37. Kg3 {[%clk 0:00:04]}  a5 {[%clk 0:00:55]} 38. a3 {[%clk 0:00:04]}  Rd1 {[%clk 0:00:54]} 39. Bb6 {[%clk 0:00:04]}  Rd3+ {[%clk 0:00:52]} 40. Kf4 {[%clk 0:00:04]}  Bc6 {[%clk 0:00:49]} 41. Bxa5 {[%clk 0:00:04]}  Kf6 {[%clk 0:00:48]} 42. Bb6 {[%clk 0:00:04]}  g5+ {[%clk 0:00:48]} 43. Kg4+ {[%clk 0:00:03]}  Kg6 {[%clk 0:00:48]} 44. h4 {[%clk 0:00:02]}  Bd7+ {[%clk 0:00:48]} 45. Rf5 {[%clk 0:00:01]}  Bxf5# {[%clk 0:00:49]} 0-1


[Site "https://www.chess.com"]

[Event "Titled Tuesday Blitz October 11 Early 2022"]
[White "Lucas, Arthur"]
[Black "Gubanov, Oleg"]
[WhiteFideId "26093073"]
[BlackFideId "14115115"]
[WhiteElo "2251"]
[BlackElo "2158"]
[Result "0-1"]
[Round "02"]
[TimeControl "180+1"]
[Date "2022.10.12"]
[WhiteClock "0:00:03"]
[BlackClock "0:00:17"]

1. e4 {[%clk 0:03:00]}  Nf6 {[%clk 0:02:59]} 2. e5 {[%clk 0:03:00]}  Nd5 {[%clk 0:02:59]} 3. d4 {[%clk 0:03:01]}  d6 {[%clk 0:02:59]} 4. c4 {[%clk 0:03:02]}  Nb6 {[%clk 0:02:59]} 5. exd6 {[%clk 0:03:02]}  cxd6 {[%clk 0:02:59]} 6. Nc3 {[%clk 0:03:02]}  g6 {[%clk 0:03:00]} 7. Be3 {[%clk 0:03:03]}  Bg7 {[%clk 0:03:00]} 8. Rc1 {[%clk 0:03:03]}  O-O {[%clk 0:03:01]} 9. b3 {[%clk 0:03:04]}  e5 {[%clk 0:03:01]} 10. dxe5 {[%clk 0:03:03]}  dxe5 {[%clk 0:03:02]} 11. Qxd8 {[%clk 0:02:58]}  Rxd8 {[%clk 0:03:03]} 12. c5 {[%clk 0:02:59]}  N6d7 {[%clk 0:03:03]} 13. Bc4 {[%clk 0:02:54]}  Nc6 {[%clk 0:03:03]} 14. Nf3 {[%clk 0:02:54]}  Na5 {[%clk 0:03:03]} 15. Be2 {[%clk 0:02:45]}  h6 {[%clk 0:03:03]} 16. O-O {[%clk 0:02:41]}  Nf8 {[%clk 0:03:03]} 17. b4 {[%clk 0:02:35]}  Nc6 {[%clk 0:02:59]} 18. b5 {[%clk 0:02:10]}  Nd4 {[%clk 0:02:59]} 19. Rfd1 {[%clk 0:01:53]}  Be6 {[%clk 0:02:58]} 20. Bxd4 {[%clk 0:01:49]}  exd4 {[%clk 0:02:57]} 21. Ne4 {[%clk 0:01:48]}  Bxa2 {[%clk 0:02:56]} 22. c6 {[%clk 0:01:30]}  bxc6 {[%clk 0:02:43]} 23. bxc6 {[%clk 0:01:31]}  Bd5 {[%clk 0:02:43]} 24. c7 {[%clk 0:01:15]}  Bxe4 {[%clk 0:02:31]} 25. cxd8=Q {[%clk 0:01:15]}  Rxd8 {[%clk 0:02:31]} 26. Rc7 {[%clk 0:01:13]}  d3 {[%clk 0:01:49]} 27. Ne1 {[%clk 0:00:58]}  Ne6 {[%clk 0:01:44]} 28. Rxa7 {[%clk 0:00:20]}  Bd4 {[%clk 0:01:31]} 29. Ra4 {[%clk 0:00:02]}  dxe2 {[%clk 0:01:30]} 30. Rd2 {[%clk 0:00:02]}  Bc6 {[%clk 0:01:22]} 31. Rc4 {[%clk 0:00:02]}  Bb5 {[%clk 0:01:18]} 32. Rb4 {[%clk 0:00:02]}  Ba6 {[%clk 0:01:11]} 33. Ra4 {[%clk 0:00:02]}  Rd6 {[%clk 0:00:22]} 34. Rxa6 {[%clk 0:00:01]}  Rxa6 {[%clk 0:00:21]} 35. Rxe2 {[%clk 0:00:01]}  Ra1 {[%clk 0:00:20]} 36. Kf1 {[%clk 0:00:02]}  Bc3 {[%clk 0:00:20]} 37. g3 {[%clk 0:00:01]}  Rxe1+ {[%clk 0:00:20]} 38. Rxe1 {[%clk 0:00:02]}  Bxe1 {[%clk 0:00:21]} 39. Kxe1 {[%clk 0:00:03]}  Kg7 {[%clk 0:00:21]} 40. Ke2 {[%clk 0:00:04]}  Kf6 {[%clk 0:00:22]} 41. Kf3 {[%clk 0:00:05]}  Kf5 {[%clk 0:00:22]} 42. h3 {[%clk 0:00:05]}  h5 {[%clk 0:00:23]} 43. h4 {[%clk 0:00:05]}  Nd4+ {[%clk 0:00:22]} 44. Ke3 {[%clk 0:00:06]}  Kg4 {[%clk 0:00:18]} 45. Kxd4 {[%clk 0:00:05]}  Kf3 {[%clk 0:00:18]} 46. Ke5 {[%clk 0:00:05]}  Kxf2 {[%clk 0:00:19]} 47. Kf4 {[%clk 0:00:05]}  f5 {[%clk 0:00:16]} 48. Kg5 {[%clk 0:00:01]}  Kxg3 {[%clk 0:00:16]} 49. Kf6 {[%clk 0:00:01]}  Kxh4 {[%clk 0:00:16]} 50. Kxg6 {[%clk 0:00:02]}  f4 {[%clk 0:00:16]} 51. Kf5 {[%clk 0:00:03]}  f3 {[%clk 0:00:17]} 0-1


[Site "https://www.chess.com"]